[Event "Early-Titled-Tuesday-Blitz-October-17-2023"]
[Site "Chess.com"]
[Date "2023.10.17"]
[Round "7"]
[White "MFatigue"]
[Black "GaiozNigalidze"]
[Result "1/2-1/2"]
[WhiteElo "2559"]
[BlackElo "2705"]
[TimeControl "180+1"]
[EndTime "9:20:56 PDT"]
[Termination "Game drawn by repetition"]

1. e4 {[%clk 0:03:00.9]} 1... e5 {[%clk 0:02:59.6]} 2. Nf3 {[%clk 0:03:01.4]}
2... Nc6 {[%clk 0:03:00]} 3. d4 {[%clk 0:03:01.9]} 3... exd4 {[%clk 0:02:59.6]}
4. Bc4 {[%clk 0:03:02.7]} 4... Nf6 {[%clk 0:02:58.7]} 5. O-O {[%clk 0:03:03.4]}
5... Bc5 {[%clk 0:02:56.5]} 6. e5 {[%clk 0:03:03.4]} 6... d5 {[%clk 0:02:56.9]}
7. exf6 {[%clk 0:03:04]} 7... dxc4 {[%clk 0:02:57.4]} 8. fxg7 {[%clk 0:03:03.8]}
8... Rg8 {[%clk 0:02:56.9]} 9. Bg5 {[%clk 0:03:03.5]} 9... Qd5 {[%clk
0:02:51.2]} 10. Re1+ {[%clk 0:02:58.3]} 10... Be6 {[%clk 0:02:51]} 11. Nc3
{[%clk 0:02:58.8]} 11... Qf5 {[%clk 0:02:51.3]} 12. Ne4 {[%clk 0:02:59.2]} 12...
Be7 {[%clk 0:02:51.4]} 13. Bxe7 {[%clk 0:02:59.8]} 13... Kxe7 {[%clk 0:02:48.8]}
14. Nxd4 {[%clk 0:03:00.1]} 14... Nxd4 {[%clk 0:02:47]} 15. Qxd4 {[%clk
0:03:01]} 15... Rad8 {[%clk 0:02:47.2]} 16. Qxa7 {[%clk 0:02:45.6]} 16... Rxg7
{[%clk 0:02:46.1]} 17. Qxb7 {[%clk 0:02:42]} 17... Qf3 {[%clk 0:02:24.4]} 18.
Qxc7+ {[%clk 0:02:38.3]} 18... Ke8 {[%clk 0:02:14.7]} 19. Ng3 {[%clk 0:02:31]}
19... Qd5 {[%clk 0:02:13.4]} 20. Qe5 {[%clk 0:01:45.9]} 20... Qxe5 {[%clk
0:02:08.9]} 21. Rxe5 {[%clk 0:01:46.8]} 21... Rd2 {[%clk 0:02:08.9]} 22. Re2
{[%clk 0:01:44.1]} 22... Rd5 {[%clk 0:02:06.7]} 23. Ne4 {[%clk 0:01:28]} 23...
Kf8 {[%clk 0:02:06.1]} 24. Nc3 {[%clk 0:01:25.8]} 24... Rd8 {[%clk 0:02:03.2]}
25. Rd1 {[%clk 0:01:21.4]} 25... Rb8 {[%clk 0:02:03.4]} 26. Rb1 {[%clk 0:01:16]}
26... Rg5 {[%clk 0:02:03.5]} 27. f4 {[%clk 0:01:13.1]} 27... Ra5 {[%clk
0:02:01.6]} 28. g3 {[%clk 0:01:08.2]} 28... h5 {[%clk 0:02:01.4]} 29. Kf2 {[%clk
0:01:08.4]} 29... Kg7 {[%clk 0:01:57.8]} 30. Re5 {[%clk 0:01:08.9]} 30... Rxe5
{[%clk 0:01:52.3]} 31. fxe5 {[%clk 0:01:09.8]} 31... Kg6 {[%clk 0:01:53.1]} 32.
b4 {[%clk 0:01:01]} 32... cxb3 {[%clk 0:01:51.9]} 33. cxb3 {[%clk 0:01:01.9]}
33... Kf5 {[%clk 0:01:52.5]} 34. Re1 {[%clk 0:01:00.3]} 34... Rd8 {[%clk
0:01:51]} 35. Re2 {[%clk 0:00:59.5]} 35... Rd3 {[%clk 0:01:50.4]} 36. Ne4 {[%clk
0:00:56.5]} 36... Rd1 {[%clk 0:01:48.1]} 37. Nc3 {[%clk 0:00:53.9]} 37... Rh1
{[%clk 0:01:46.2]} 38. Ke3 {[%clk 0:00:44.3]} 38... Kxe5 {[%clk 0:01:44]} 39. b4
{[%clk 0:00:42.1]} 39... Bc4 {[%clk 0:01:42.8]} 40. Rf2 {[%clk 0:00:36.1]} 40...
Re1+ {[%clk 0:01:26]} 41. Kd2 {[%clk 0:00:35.8]} 41... Ra1 {[%clk 0:01:26.9]}
42. a4 {[%clk 0:00:35.1]} 42... f5 {[%clk 0:01:17.9]} 43. Rf4 {[%clk 0:00:35.5]}
43... Be6 {[%clk 0:01:17]} 44. Rh4 {[%clk 0:00:35.6]} 44... Bf7 {[%clk
0:01:12.9]} 45. b5 {[%clk 0:00:35.9]} 45... Kd6 {[%clk 0:01:08.4]} 46. Rf4
{[%clk 0:00:34.6]} 46... Be6 {[%clk 0:01:08.1]} 47. Rh4 {[%clk 0:00:30]} 47...
Bf7 {[%clk 0:01:07.7]} 48. Ke3 {[%clk 0:00:30.3]} 48... Ra3 {[%clk 0:00:55]} 49.
Kd4 {[%clk 0:00:28.4]} 49... Rb3 {[%clk 0:00:55.9]} 50. Kd3 {[%clk 0:00:22.9]}
50... Kc5 {[%clk 0:00:51.6]} 51. Kc2 {[%clk 0:00:23.1]} 51... Ra3 {[%clk
0:00:48.8]} 52. Kb2 {[%clk 0:00:20.6]} 52... Rb3+ {[%clk 0:00:49.2]} 53. Kc2
{[%clk 0:00:20.7]} 53... Ra3 {[%clk 0:00:49.8]} 54. Rf4 {[%clk 0:00:18]} 54...
Be6 {[%clk 0:00:50.2]} 55. Rh4 {[%clk 0:00:17.5]} 55... Bf7 {[%clk 0:00:50.1]}
1/2-1/2

[Event "Early-Titled-Tuesday-Blitz-October-17-2023"]
[Site "Chess.com"]
[Date "2023.10.17"]
[Round "7"]
[White "stollenmonster"]
[Black "GM_Huschenbeth"]
[Result "1-0"]
[WhiteElo "2799"]
[BlackElo "2548"]
[TimeControl "180+1"]
[EndTime "9:21:00 PDT"]
[Termination "stollenmonster won on time"]

1. e4 {[%clk 0:02:08.7]} 1... c5 {[%clk 0:02:59.2]} 2. Nf3 {[%clk 0:02:07.1]}
2... d6 {[%clk 0:02:59.5]} 3. d4 {[%clk 0:02:04.6]} 3... cxd4 {[%clk 0:03:00.4]}
4. Nxd4 {[%clk 0:02:05]} 4... Nf6 {[%clk 0:03:01]} 5. Nc3 {[%clk 0:02:05.4]}
5... a6 {[%clk 0:03:01.6]} 6. a4 {[%clk 0:02:05.4]} 6... g6 {[%clk 0:03:00.4]}
7. g3 {[%clk 0:02:05.6]} 7... Bg7 {[%clk 0:03:00.7]} 8. Bg2 {[%clk 0:02:06.3]}
8... O-O {[%clk 0:03:01.2]} 9. O-O {[%clk 0:02:06.7]} 9... Bd7 {[%clk
0:02:58.8]} 10. h3 {[%clk 0:02:04.3]} 10... Nc6 {[%clk 0:02:58.6]} 11. Nde2
{[%clk 0:02:04.9]} 11... Rb8 {[%clk 0:02:52.8]} 12. Nd5 {[%clk 0:02:02.4]} 12...
b5 {[%clk 0:02:37]} 13. axb5 {[%clk 0:02:03.3]} 13... axb5 {[%clk 0:02:37.5]}
14. Be3 {[%clk 0:01:59.7]} 14... Nxd5 {[%clk 0:02:34.4]} 15. exd5 {[%clk
0:02:00.6]} 15... Ne5 {[%clk 0:02:34.8]} 16. b3 {[%clk 0:02:00.4]} 16... g5
{[%clk 0:01:40.3]} 17. Nd4 {[%clk 0:01:34.7]} 17... g4 {[%clk 0:01:37.4]} 18.
hxg4 {[%clk 0:01:25.8]} 18... Nxg4 {[%clk 0:01:34.4]} 19. Bg5 {[%clk 0:01:14]}
19... h6 {[%clk 0:01:31.4]} 20. Bf4 {[%clk 0:01:10.5]} 20... Rc8 {[%clk
0:01:24.6]} 21. Nc6 {[%clk 0:01:01.1]} 21... Bxc6 {[%clk 0:01:20.6]} 22. dxc6
{[%clk 0:01:01.1]} 22... Bxa1 {[%clk 0:01:08.7]} 23. Qxg4+ {[%clk 0:00:56.3]}
23... Kh8 {[%clk 0:00:49.5]} 24. Rxa1 {[%clk 0:00:54.3]} 24... Rg8 {[%clk
0:00:46.2]} 25. Qh5 {[%clk 0:00:42.9]} 25... Rg6 {[%clk 0:00:45.9]} 26. Bxh6
{[%clk 0:00:43.1]} 26... d5 {[%clk 0:00:32.5]} 27. Bf4+ {[%clk 0:00:39.6]} 27...
Kg7 {[%clk 0:00:17.4]} 28. c7 {[%clk 0:00:39.8]} 28... Qd7 {[%clk 0:00:15.9]}
29. Bh3 {[%clk 0:00:38.8]} 29... e6 {[%clk 0:00:14.3]} 30. Bf1 {[%clk
0:00:33.5]} 30... Rh8 {[%clk 0:00:14.2]} 31. Qf3 {[%clk 0:00:28.6]} 31... f6
{[%clk 0:00:13.4]} 32. Bd3 {[%clk 0:00:27.7]} 32... e5 {[%clk 0:00:13.2]} 33.
Bxg6 {[%clk 0:00:26.2]} 33... Kxg6 {[%clk 0:00:12.8]} 34. Bxe5 {[%clk
0:00:22.7]} 34... fxe5 {[%clk 0:00:11.5]} 35. Ra6+ {[%clk 0:00:23]} 35... Kg7
{[%clk 0:00:03.9]} 36. Qf6+ {[%clk 0:00:22.7]} 36... Kh7 {[%clk 0:00:01.9]} 37.
Re6 {[%clk 0:00:21.3]} 1-0

[Event "Early-Titled-Tuesday-Blitz-October-17-2023"]
[Site "Chess.com"]
[Date "2023.10.17"]
[Round "7"]
[White "szefru"]
[Black "vishwa_vijeta"]
[Result "1-0"]
[WhiteElo "2356"]
[BlackElo "2512"]
[TimeControl "180+1"]
[EndTime "9:21:00 PDT"]
[Termination "szefru won by resignation"]

1. e4 {[%clk 0:03:00.9]} 1... c5 {[%clk 0:02:58.5]} 2. Nf3 {[%clk 0:03:00.8]}
2... d6 {[%clk 0:02:58.4]} 3. d4 {[%clk 0:03:00.6]} 3... cxd4 {[%clk 0:02:59.1]}
4. Qxd4 {[%clk 0:03:01.5]} 4... Nf6 {[%clk 0:02:59.2]} 5. Bb5+ {[%clk
0:03:01.1]} 5... Nc6 {[%clk 0:02:57.8]} 6. c4 {[%clk 0:02:49.9]} 6... Bd7 {[%clk
0:02:53.8]} 7. Qd3 {[%clk 0:02:49.9]} 7... Nb4 {[%clk 0:02:41.7]} 8. Qe2 {[%clk
0:02:49.8]} 8... Bxb5 {[%clk 0:02:37]} 9. cxb5 {[%clk 0:02:50.7]} 9... Rc8
{[%clk 0:02:31.6]} 10. Nc3 {[%clk 0:02:50.7]} 10... d5 {[%clk 0:02:20.4]} 11. a3
{[%clk 0:02:08.9]} 11... dxe4 {[%clk 0:02:06.2]} 12. axb4 {[%clk 0:01:57.2]}
12... exf3 {[%clk 0:02:04.9]} 13. Qxf3 {[%clk 0:01:58.1]} 13... e6 {[%clk
0:02:04.8]} 14. O-O {[%clk 0:01:49.2]} 14... Bxb4 {[%clk 0:02:03.5]} 15. Rd1
{[%clk 0:01:30]} 15... Qc7 {[%clk 0:01:43.6]} 16. Bf4 {[%clk 0:01:27.1]} 16...
Qc4 {[%clk 0:01:37.6]} 17. Rac1 {[%clk 0:00:56.7]} 17... O-O {[%clk 0:01:27.7]}
18. Be5 {[%clk 0:00:50.3]} 18... Ng4 {[%clk 0:01:12.2]} 19. Bd6 {[%clk
0:00:39.8]} 19... Bxd6 {[%clk 0:01:10.8]} 20. Rxd6 {[%clk 0:00:40.7]} 20... b6
{[%clk 0:01:01.6]} 21. h3 {[%clk 0:00:31.8]} 21... Ne5 {[%clk 0:00:58.2]} 22.
Qg3 {[%clk 0:00:27.2]} 22... Nd3 {[%clk 0:00:51]} 23. Rxd3 {[%clk 0:00:26.5]}
23... h6 {[%clk 0:00:48.7]} 24. Rd7 {[%clk 0:00:23.9]} 24... Qb4 {[%clk
0:00:46.1]} 25. Rc2 {[%clk 0:00:20.3]} 25... Qb3 {[%clk 0:00:44]} 26. Qd3 {[%clk
0:00:19.6]} 26... Qb4 {[%clk 0:00:39.1]} 27. Rd2 {[%clk 0:00:19.8]} 27... g6
{[%clk 0:00:27]} 28. Rxa7 {[%clk 0:00:19.9]} 28... Rfd8 {[%clk 0:00:24.7]} 29.
Rd7 {[%clk 0:00:20.4]} 29... Re8 {[%clk 0:00:24]} 30. Qf3 {[%clk 0:00:20.3]}
30... Rf8 {[%clk 0:00:21.2]} 31. Qb7 {[%clk 0:00:20.5]} 31... Rc5 {[%clk
0:00:19.8]} 32. Rd8 {[%clk 0:00:19.6]} 32... Rxd8 {[%clk 0:00:18.2]} 33. Rxd8+
{[%clk 0:00:20.5]} 33... Kg7 {[%clk 0:00:19.1]} 34. Rd7 {[%clk 0:00:20.6]} 34...
Rf5 {[%clk 0:00:18.4]} 35. Rd2 {[%clk 0:00:19.3]} 35... Qc5 {[%clk 0:00:18.1]}
36. Qe4 {[%clk 0:00:18.7]} 36... Re5 {[%clk 0:00:17.6]} 37. Qd4 {[%clk
0:00:17.8]} 37... Qc7 {[%clk 0:00:15.9]} 38. f4 {[%clk 0:00:17]} 1-0

[Event "Early-Titled-Tuesday-Blitz-October-17-2023"]
[Site "Chess.com"]
[Date "2023.10.17"]
[Round "7"]
[White "KorolDimitriy75"]
[Black "GAusal"]
[Result "0-1"]
[WhiteElo "2392"]
[BlackElo "2283"]
[TimeControl "180+1"]
[EndTime "9:21:01 PDT"]
[Termination "GAusal won by resignation"]

1. d4 {[%clk 0:03:00.9]} 1... d5 {[%clk 0:02:38.4]} 2. c4 {[%clk 0:02:58.9]}
2... c6 {[%clk 0:02:38]} 3. Nc3 {[%clk 0:02:58.7]} 3... Nf6 {[%clk 0:02:38]} 4.
e3 {[%clk 0:02:58.5]} 4... Bf5 {[%clk 0:02:37.1]} 5. Nf3 {[%clk 0:02:57.7]} 5...
e6 {[%clk 0:02:36.9]} 6. Bd3 {[%clk 0:02:58]} 6... Bxd3 {[%clk 0:02:36.1]} 7.
Qxd3 {[%clk 0:02:58.9]} 7... Be7 {[%clk 0:02:34.3]} 8. O-O {[%clk 0:02:59.1]}
8... O-O {[%clk 0:02:34.3]} 9. e4 {[%clk 0:02:59.5]} 9... dxe4 {[%clk
0:02:33.4]} 10. Nxe4 {[%clk 0:03:00.4]} 10... Nxe4 {[%clk 0:02:33.6]} 11. Qxe4
{[%clk 0:03:01.3]} 11... Nd7 {[%clk 0:02:33.3]} 12. Bf4 {[%clk 0:03:00.3]} 12...
Nf6 {[%clk 0:02:32.8]} 13. Qe2 {[%clk 0:02:59.9]} 13... Qa5 {[%clk 0:02:30.2]}
14. b3 {[%clk 0:02:58]} 14... Rad8 {[%clk 0:02:29.1]} 15. Rad1 {[%clk
0:02:55.7]} 15... Rfe8 {[%clk 0:02:27.4]} 16. Rd3 {[%clk 0:02:41]} 16... Nh5
{[%clk 0:02:24.3]} 17. Be3 {[%clk 0:02:31.7]} 17... Qf5 {[%clk 0:02:17.6]} 18.
Rfd1 {[%clk 0:02:03.6]} 18... Nf4 {[%clk 0:02:16.2]} 19. Bxf4 {[%clk 0:02:03.5]}
19... Qxf4 {[%clk 0:02:16.4]} 20. h3 {[%clk 0:01:48]} 20... h6 {[%clk
0:02:11.1]} 21. Ne5 {[%clk 0:01:42.3]} 21... Bd6 {[%clk 0:01:54.7]} 22. Rf3
{[%clk 0:01:34.9]} 22... Qg5 {[%clk 0:01:51]} 23. Nxf7 {[%clk 0:01:32.5]} 23...
Qg6 {[%clk 0:01:41.4]} 24. Nxd8 {[%clk 0:01:27.3]} 24... Rxd8 {[%clk 0:01:41]}
25. Re1 {[%clk 0:01:20.8]} 25... Re8 {[%clk 0:01:30.2]} 26. Qe4 {[%clk
0:01:19.4]} 26... Qh5 {[%clk 0:01:24.6]} 27. Qg4 {[%clk 0:01:13.5]} 27... Qa5
{[%clk 0:01:20.7]} 28. Rfe3 {[%clk 0:00:51.7]} 28... h5 {[%clk 0:00:57.2]} 29.
Qxh5 {[%clk 0:00:38.3]} 29... Qxh5 {[%clk 0:00:55.5]} 30. d5 {[%clk 0:00:17.3]}
30... cxd5 {[%clk 0:00:51.7]} 31. g4 {[%clk 0:00:14.5]} 31... Qg5 {[%clk
0:00:45.9]} 32. cxd5 {[%clk 0:00:10.8]} 32... Qxd5 {[%clk 0:00:39.5]} 33. R1e2
{[%clk 0:00:09]} 33... Bc5 {[%clk 0:00:38.7]} 34. Re4 {[%clk 0:00:08.5]} 34...
Qd1+ {[%clk 0:00:35.9]} 35. Re1 {[%clk 0:00:08]} 35... Qf3 {[%clk 0:00:34.4]}
36. R4e3 {[%clk 0:00:04.7]} 36... Bxe3 {[%clk 0:00:33.4]} 37. Rxe3 {[%clk
0:00:05.6]} 37... Qxe3 {[%clk 0:00:31.8]} 38. fxe3 {[%clk 0:00:05.4]} 38... Kf7
{[%clk 0:00:31.9]} 39. Kf2 {[%clk 0:00:05.7]} 39... Rc8 {[%clk 0:00:31.8]} 40.
Ke2 {[%clk 0:00:06.6]} 40... Rc2+ {[%clk 0:00:31.7]} 41. Kd3 {[%clk 0:00:07.5]}
41... Rxa2 {[%clk 0:00:31.8]} 42. Ke4 {[%clk 0:00:08]} 42... Rb2 {[%clk
0:00:31.7]} 0-1

[Event "Early-Titled-Tuesday-Blitz-October-17-2023"]
[Site "Chess.com"]
[Date "2023.10.17"]
[Round "7"]
[White "victormago"]
[Black "pinguino120"]
[Result "0-1"]
[WhiteElo "2466"]
[BlackElo "2217"]
[TimeControl "180+1"]
[EndTime "9:21:02 PDT"]
[Termination "pinguino120 won on time"]

1. d4 {[%clk 0:02:59.7]} 1... d5 {[%clk 0:02:59.7]} 2. c4 {[%clk 0:03:00.1]}
2... e6 {[%clk 0:02:59.7]} 3. Nc3 {[%clk 0:03:00.1]} 3... c6 {[%clk 0:03:00.4]}
4. e3 {[%clk 0:02:58.1]} 4... Nf6 {[%clk 0:02:56.3]} 5. Qc2 {[%clk 0:02:57.7]}
5... Nbd7 {[%clk 0:02:52.1]} 6. Nf3 {[%clk 0:02:58.2]} 6... Bd6 {[%clk
0:02:51.4]} 7. g4 {[%clk 0:02:57.8]} 7... h6 {[%clk 0:02:48.7]} 8. Rg1 {[%clk
0:02:55.8]} 8... e5 {[%clk 0:02:48.1]} 9. h4 {[%clk 0:02:47.7]} 9... e4 {[%clk
0:02:16.2]} 10. Nd2 {[%clk 0:02:40.5]} 10... g5 {[%clk 0:02:15.7]} 11. cxd5
{[%clk 0:02:27.9]} 11... cxd5 {[%clk 0:02:15.2]} 12. hxg5 {[%clk 0:02:27.6]}
12... hxg5 {[%clk 0:02:14.8]} 13. Nb5 {[%clk 0:02:27.5]} 13... Nb6 {[%clk
0:02:13.8]} 14. a4 {[%clk 0:02:19.7]} 14... Bxg4 {[%clk 0:02:08.5]} 15. a5
{[%clk 0:02:18.4]} 15... Nc8 {[%clk 0:01:59.7]} 16. Qb3 {[%clk 0:02:05.5]} 16...
Bh2 {[%clk 0:01:55.4]} 17. Rh1 {[%clk 0:02:00.1]} 17... a6 {[%clk 0:01:53.9]}
18. Nc3 {[%clk 0:01:52.7]} 18... Qd7 {[%clk 0:01:44.7]} 19. Na4 {[%clk
0:01:48.4]} 19... Rb8 {[%clk 0:01:23.4]} 20. Nc5 {[%clk 0:01:44.9]} 20... Qf5
{[%clk 0:01:13.8]} 21. Ra4 {[%clk 0:01:12]} 21... Ke7 {[%clk 0:01:08.1]} 22. Qa3
{[%clk 0:00:51.5]} 22... Nd6 {[%clk 0:01:07.7]} 23. Bg2 {[%clk 0:00:28.8]} 23...
Bf3 {[%clk 0:00:32.2]} 24. Bxf3 {[%clk 0:00:20.8]} 24... exf3 {[%clk 0:00:32.5]}
25. Rb4 {[%clk 0:00:13.5]} 25... Qg4 {[%clk 0:00:18.8]} 26. Qb3 {[%clk
0:00:11.9]} 26... Qg2 {[%clk 0:00:18.3]} 27. Rf1 {[%clk 0:00:12.1]} 27... Bg1
{[%clk 0:00:17.7]} 28. Nxb7 {[%clk 0:00:09.1]} 28... Bxf2+ {[%clk 0:00:17.7]}
29. Kd1 {[%clk 0:00:08.8]} 29... Bg3 {[%clk 0:00:13.6]} 30. Nxd6 {[%clk
0:00:08.2]} 30... Bxd6 {[%clk 0:00:14.5]} 31. Rb7+ {[%clk 0:00:07.5]} 31... Ke6
{[%clk 0:00:15.1]} 32. Rxf3 {[%clk 0:00:05.6]} 32... Qg1+ {[%clk 0:00:14.7]} 33.
Kc2 {[%clk 0:00:06]} 33... Qg4 {[%clk 0:00:15]} 34. Rxf6+ {[%clk 0:00:05.1]}
34... Kxf6 {[%clk 0:00:15]} 35. Rxb8 {[%clk 0:00:05.3]} 35... Qf5+ {[%clk
0:00:15.2]} 36. Kd1 {[%clk 0:00:04.1]} 36... Rxb8 {[%clk 0:00:15.8]} 0-1

[Event "Early-Titled-Tuesday-Blitz-October-17-2023"]
[Site "Chess.com"]
[Date "2023.10.17"]
[Round "7"]
[White "giomar27"]
[Black "ArtemDyachuk"]
[Result "0-1"]
[WhiteElo "2351"]
[BlackElo "2643"]
[TimeControl "180+1"]
[EndTime "9:21:04 PDT"]
[Termination "ArtemDyachuk won by resignation"]

1. e4 {[%clk 0:01:55.1]} 1... c6 {[%clk 0:02:56.9]} 2. d4 {[%clk 0:01:54.5]}
2... d5 {[%clk 0:02:56.7]} 3. Nc3 {[%clk 0:01:55.2]} 3... dxe4 {[%clk
0:02:56.2]} 4. Nxe4 {[%clk 0:01:56.1]} 4... Nf6 {[%clk 0:02:56.4]} 5. Nxf6+
{[%clk 0:01:56.4]} 5... exf6 {[%clk 0:02:57.3]} 6. c3 {[%clk 0:01:56.9]} 6...
Bd6 {[%clk 0:02:57.8]} 7. Bd3 {[%clk 0:01:57.5]} 7... Na6 {[%clk 0:02:58.2]} 8.
Ne2 {[%clk 0:01:56.4]} 8... Nc7 {[%clk 0:02:54]} 9. O-O {[%clk 0:01:56.7]} 9...
O-O {[%clk 0:02:53.4]} 10. Qc2 {[%clk 0:01:55.4]} 10... g6 {[%clk 0:02:51.7]}
11. Bf4 {[%clk 0:01:55.4]} 11... Re8 {[%clk 0:02:50.3]} 12. Bxd6 {[%clk
0:01:51.2]} 12... Qxd6 {[%clk 0:02:51.2]} 13. Rae1 {[%clk 0:01:50.6]} 13... Kg7
{[%clk 0:02:49.8]} 14. Ng3 {[%clk 0:01:50.8]} 14... Bd7 {[%clk 0:02:47]} 15. Ne4
{[%clk 0:01:45.1]} 15... Qd5 {[%clk 0:02:30.9]} 16. Nc5 {[%clk 0:01:44.7]} 16...
b6 {[%clk 0:02:21.4]} 17. Be4 {[%clk 0:01:33.8]} 17... Qd6 {[%clk 0:02:16.7]}
18. Nxd7 {[%clk 0:01:27.5]} 18... Qxd7 {[%clk 0:02:17.6]} 19. Bf3 {[%clk
0:01:27.3]} 19... Ne6 {[%clk 0:02:11.3]} 20. Qe4 {[%clk 0:01:23]} 20... Rac8
{[%clk 0:02:09.3]} 21. Qg4 {[%clk 0:01:04.2]} 21... h5 {[%clk 0:02:05.9]} 22.
Qg3 {[%clk 0:01:00]} 22... Kh7 {[%clk 0:01:57.2]} 23. Be4 {[%clk 0:00:56.8]}
23... f5 {[%clk 0:01:52]} 24. Bb1 {[%clk 0:00:56.1]} 24... c5 {[%clk 0:01:48.9]}
25. dxc5 {[%clk 0:00:47.7]} 25... Nxc5 {[%clk 0:01:49.8]} 26. Rd1 {[%clk
0:00:38.3]} 26... Qc7 {[%clk 0:01:49.6]} 27. Qg5 {[%clk 0:00:34.8]} 27... Ne6
{[%clk 0:01:46.5]} 28. Qf6 {[%clk 0:00:32.1]} 28... Ng7 {[%clk 0:01:39.8]} 29.
Rfe1 {[%clk 0:00:29.5]} 29... Rxe1+ {[%clk 0:01:36.8]} 30. Rxe1 {[%clk
0:00:29.3]} 30... Re8 {[%clk 0:01:37.3]} 31. Rxe8 {[%clk 0:00:23]} 31... Nxe8
{[%clk 0:01:38.2]} 32. Qd4 {[%clk 0:00:22.1]} 32... Qe7 {[%clk 0:01:37.7]} 33.
Kf1 {[%clk 0:00:18.9]} 33... Nf6 {[%clk 0:01:34.5]} 34. Bd3 {[%clk 0:00:18.1]}
34... Kg7 {[%clk 0:01:33.4]} 35. h3 {[%clk 0:00:17.4]} 35... Qc7 {[%clk
0:01:29.1]} 36. g3 {[%clk 0:00:14.7]} 36... Qc6 {[%clk 0:01:28.2]} 37. Ke2
{[%clk 0:00:11.4]} 37... Qh1 {[%clk 0:01:26.2]} 38. h4 {[%clk 0:00:11.7]} 38...
Qc1 {[%clk 0:01:25.1]} 39. c4 {[%clk 0:00:08.9]} 39... Qh1 {[%clk 0:01:10.8]}
40. Qc3 {[%clk 0:00:08]} 40... Qc6 {[%clk 0:01:09.9]} 41. Qd4 {[%clk 0:00:08.3]}
41... Kh7 {[%clk 0:01:07.2]} 42. b4 {[%clk 0:00:07.4]} 42... Ng4 {[%clk
0:01:05.6]} 43. Qd5 {[%clk 0:00:05.5]} 43... Qf6 {[%clk 0:01:02]} 44. c5 {[%clk
0:00:04.2]} 44... Qb2+ {[%clk 0:01:00.5]} 45. Kd1 {[%clk 0:00:03]} 45... Nxf2+
{[%clk 0:00:55.9]} 46. Ke1 {[%clk 0:00:02.9]} 46... Qe5+ {[%clk 0:00:54.4]} 47.
Qxe5 {[%clk 0:00:02.7]} 47... Nxd3+ {[%clk 0:00:54.6]} 48. Kd2 {[%clk
0:00:03.2]} 48... Nxe5 {[%clk 0:00:55.5]} 49. cxb6 {[%clk 0:00:03.5]} 49... axb6
{[%clk 0:00:55.3]} 50. a4 {[%clk 0:00:03.6]} 50... Kg7 {[%clk 0:00:55]} 51. Kc3
{[%clk 0:00:04.5]} 51... Kf6 {[%clk 0:00:52.5]} 52. Kd4 {[%clk 0:00:05.4]} 52...
Ke6 {[%clk 0:00:52.5]} 53. a5 {[%clk 0:00:05.4]} 53... bxa5 {[%clk 0:00:52.2]}
54. bxa5 {[%clk 0:00:06.3]} 54... Nc6+ {[%clk 0:00:52.5]} 0-1

[Event "Early-Titled-Tuesday-Blitz-October-17-2023"]
[Site "Chess.com"]
[Date "2023.10.17"]
[Round "7"]
[White "Smiechu"]
[Black "cycygogne"]
[Result "1-0"]
[WhiteElo "2498"]
[BlackElo "2270"]
[TimeControl "180+1"]
[EndTime "9:21:06 PDT"]
[Termination "Smiechu won by resignation"]

1. e4 {[%clk 0:03:00.9]} 1... d5 {[%clk 0:02:57.7]} 2. exd5 {[%clk 0:03:00.5]}
2... Qxd5 {[%clk 0:02:58.6]} 3. Nf3 {[%clk 0:03:00.6]} 3... Bg4 {[%clk
0:02:57.8]} 4. Be2 {[%clk 0:03:00.1]} 4... Nf6 {[%clk 0:02:56.8]} 5. d4 {[%clk
0:02:59.9]} 5... e6 {[%clk 0:02:56.1]} 6. c4 {[%clk 0:02:58.5]} 6... Qd8 {[%clk
0:02:55.9]} 7. O-O {[%clk 0:02:56.2]} 7... Be7 {[%clk 0:02:53.2]} 8. Be3 {[%clk
0:02:56]} 8... O-O {[%clk 0:02:51.9]} 9. Nc3 {[%clk 0:02:55.9]} 9... c6 {[%clk
0:02:47]} 10. Ne5 {[%clk 0:02:51.7]} 10... Bxe2 {[%clk 0:02:43]} 11. Qxe2 {[%clk
0:02:52.6]} 11... Nbd7 {[%clk 0:02:40.9]} 12. Rfd1 {[%clk 0:02:47.5]} 12... Qc7
{[%clk 0:02:36.9]} 13. Bf4 {[%clk 0:02:44.5]} 13... Bd6 {[%clk 0:02:30]} 14. Ne4
{[%clk 0:02:02.4]} 14... Nxe4 {[%clk 0:02:11.8]} 15. Qxe4 {[%clk 0:01:59.5]}
15... Rad8 {[%clk 0:01:36.6]} 16. Bg3 {[%clk 0:01:44.1]} 16... c5 {[%clk
0:01:18.4]} 17. Nxd7 {[%clk 0:01:39.4]} 17... Rxd7 {[%clk 0:01:18.5]} 18. dxc5
{[%clk 0:01:36.6]} 18... Bxg3 {[%clk 0:01:15.8]} 19. Rxd7 {[%clk 0:01:35.5]}
19... Bxh2+ {[%clk 0:01:05.3]} 20. Kh1 {[%clk 0:01:35.1]} 20... Qxd7 {[%clk
0:01:04.5]} 21. Kxh2 {[%clk 0:01:34.5]} 21... Rc8 {[%clk 0:00:58.3]} 22. b4
{[%clk 0:01:28.2]} 22... b6 {[%clk 0:00:51.2]} 23. cxb6 {[%clk 0:01:25.7]} 23...
axb6 {[%clk 0:00:50.8]} 24. Kg1 {[%clk 0:01:18]} 24... Qd2 {[%clk 0:00:44]} 25.
c5 {[%clk 0:01:11.4]} 25... bxc5 {[%clk 0:00:41.7]} 26. bxc5 {[%clk 0:01:11.2]}
26... Qc3 {[%clk 0:00:42]} 27. Qe1 {[%clk 0:01:04]} 27... Qxe1+ {[%clk
0:00:30.9]} 28. Rxe1 {[%clk 0:01:03.7]} 28... Rxc5 {[%clk 0:00:31.5]} 29. Ra1
{[%clk 0:01:02.8]} 29... Ra5 {[%clk 0:00:30.4]} 30. Kf1 {[%clk 0:00:59.7]} 30...
Kf8 {[%clk 0:00:30.4]} 31. Ke2 {[%clk 0:00:59.9]} 31... Ke7 {[%clk 0:00:30.9]}
32. Kd3 {[%clk 0:01:00.5]} 32... Kd6 {[%clk 0:00:31.4]} 33. Kc4 {[%clk
0:01:01.2]} 33... Kc6 {[%clk 0:00:31.8]} 34. Kb4 {[%clk 0:01:01.2]} 34... Rf5
{[%clk 0:00:26.8]} 35. f3 {[%clk 0:00:53.7]} 35... Kb6 {[%clk 0:00:23.9]} 36.
Rd1 {[%clk 0:00:49.8]} 36... Rf4+ {[%clk 0:00:21.7]} 37. Kb3 {[%clk 0:00:49.6]}
37... h5 {[%clk 0:00:19.7]} 38. a4 {[%clk 0:00:38.2]} 38... Ka5 {[%clk
0:00:17.5]} 39. Rd7 {[%clk 0:00:35.9]} 39... Rb4+ {[%clk 0:00:16.7]} 40. Kc3
{[%clk 0:00:35.8]} 40... Rxa4 {[%clk 0:00:13.9]} 41. Rxf7 {[%clk 0:00:33.8]}
41... g5 {[%clk 0:00:13.3]} 42. Ra7+ {[%clk 0:00:29.9]} 42... Kb5 {[%clk
0:00:13.2]} 43. Rxa4 {[%clk 0:00:29.4]} 43... Kxa4 {[%clk 0:00:14.1]} 44. Kd4
{[%clk 0:00:29.9]} 44... Kb4 {[%clk 0:00:12.8]} 45. Ke5 {[%clk 0:00:30]} 45...
Kc3 {[%clk 0:00:12.5]} 46. Kxe6 {[%clk 0:00:30.6]} 46... Kd3 {[%clk 0:00:13.2]}
47. Kf5 {[%clk 0:00:31]} 47... Ke3 {[%clk 0:00:14]} 48. Kxg5 {[%clk 0:00:31.4]}
48... Kf2 {[%clk 0:00:14.7]} 49. Kxh5 {[%clk 0:00:31.7]} 49... Kxg2 {[%clk
0:00:15.1]} 50. f4 {[%clk 0:00:32.2]} 1-0